Workbook

Sheet إرشاد
B2: التدفق النقدي الشخصي
B3: يحتوي هذا المصنف على أوراق عمل التدفق النقدي السنوي والشهري واليومي. اختر نوع التدفق النقدي الذي يناسبك أو استخدم الكل لمساعدتك في الحصول على معلومات حول التدفق النقدي الشخصي.
B5: التدفق النقدي اليومي | E5: التدفق النقدي الشهري | H5: التدفق النقدي السنوي
B7: أدخل مبلغاً تقديرياً من التدفق النقدي الذي تتعرض له يومياً وراجع الإجماليات الشهرية والسنوية المقدّرة. استخدم هذا للحصول على فكرة عما ستبدو عليه عاداتك اليومية في الإنفاق على مدار الشهر أو السنة. | E7: أدخل التدفق النقدي الشهري التي تتعرض له شهرياً أو قم بتقدير الأشهر المتبقية لمعرفة التدفق النقدي المتوقع للسنة في كل شهر. | H7: أدخل مبلغ التدفق النقدي السنوي في أربع أوراق عمل: الدخل والمصاريف والاختيارية والتوفير. اطلع على التفصيل الشهري وكيفية مقارنة كل شيء، وعلى الأخص ما هو صافي أرباحك في كل من الأرقام السنوية والشهرية.

Sheet التدفق النقدي اليومي
B1: التدفق النقدي الشخصي
C2: إجمالي النقد المتوفر: | D2: =التدفق_النقدي_اليومي -> ر.س.‏ 405.49 | F2: ملاحظة: إذا كنت ترغب في إضافة عناصر يومية إلى الجدول، قم بتقدير القيمة/المبلغ الشهري وقم بوضع القيمة في عمود الشهر المناسب.
B4: ملخص يومي
B5: الإجماليات | C5: يومياً | D5: شهري | E5: السنوي
B6: الدخل | C6: =SUMIF(اليومية[النوع],$B6,اليومية[يومي]) -> ر.س.‏ 342.47 | D6: =SUMIF(اليومية[النوع],$B6,اليومية[الشهري]) -> ر.س.‏ 10,416.80 | E6: =SUMIF(اليومية[النوع],$B6,اليومية[السنوي]) -> ر.س.‏ 125,001.55
B7: المصروفات | C7: =SUMIF(اليومية[النوع],$B7,اليومية[يومي]) -> ر.س.‏ 0.00 | D7: =SUMIF(اليومية[النوع],$B7,اليومية[الشهري]) -> ر.س.‏ 0.00 | E7: =SUMIF(اليومية[النوع],$B7,اليومية[السنوي]) -> ر.س.‏ 0.00
B8: التقديري | C8: =SUMIF(اليومية[النوع],$B8,اليومية[يومي]) -> ر.س.‏ 0.00 | D8: =SUMIF(اليومية[النوع],$B8,اليومية[الشهري]) -> ر.س.‏ 0.00 | E8: =SUMIF(اليومية[النوع],$B8,اليومية[السنوي]) -> ر.س.‏ 0.00
B9: المدخرات | C9: =SUMIF(اليومية[النوع],$B9,اليومية[يومي]) -> ر.س.‏ 63.02 | D9: =SUMIF(اليومية[النوع],$B9,اليومية[الشهري]) -> ر.س.‏ 1,916.86 | E9: =SUMIF(اليومية[النوع],$B9,اليومية[السنوي]) -> ر.س.‏ 23,002.30
B11: النوع | C11: الوصف | D11: يومي | E11: الشهري | F11: السنوي
B12: الدخل | C12: المرتب | D12: ر.س.‏ 246.58 | E12: =اليومية[[#This Row],[السنوي]]/12 -> ر.س.‏ 7,500.14 | F12: =اليومية[[#This Row],[يومي]]*365 -> ر.س.‏ 90,001.70
B13: الدخل | C13: العمولات/المكافآت | D13: ر.س.‏ 13.70 | E13: =اليومية[[#This Row],[السنوي]]/12 -> ر.س.‏ 416.71 | F13: =اليومية[[#This Row],[يومي]]*365 -> ر.س.‏ 5,000.50
B14: الدخل | C14: أخرى 1 | D14: ر.س.‏ 82.19 | E14: =اليومية[[#This Row],[السنوي]]/12 -> ر.س.‏ 2,499.95 | F14: =اليومية[[#This Row],[يومي]]*365 -> ر.س.‏ 29,999.35
B15: الدخل | C15: أخرى 2 | D15: ر.س.‏ 0.00 | E15: =اليومية[[#This Row],[السنوي]]/12 -> ر.س.‏ 0.00 | F15: =اليومية[[#This Row],[يومي]]*365 -> ر.س.‏ 0.00
B16: الدخل | C16: أخرى 3 | D16: ر.س.‏ 0.00 | E16: =اليومية[[#This Row],[السنوي]]/12 -> ر.س.‏ 0.00 | F16: =اليومية[[#This Row],[يومي]]*365 -> ر.س.‏ 0.00
B17: الدخل | C17: أخرى 4 | D17: ر.س.‏ 0.00 | E17: =اليومية[[#This Row],[السنوي]]/12 -> ر.س.‏ 0.00 | F17: =اليومية[[#This Row],[يومي]]*365 -> ر.س.‏ 0.00
B18: المصاريف | C18: الفيدرالي/الضمان الاجتماعي/الرعاية الطبية | D18: ر.س.‏ 41.10 | E18: =اليومية[[#This Row],[السنوي]]/12 -> ر.س.‏ 1,250.13 | F18: =اليومية[[#This Row],[يومي]]*365 -> ر.س.‏ 15,001.50
B19: المصاريف | C19: ضريبة الدخل الحكومية | D19: ر.س.‏ 6.85 | E19: =اليومية[[#This Row],[السنوي]]/12 -> ر.س.‏ 208.35 | F19: =اليومية[[#This Row],[يومي]]*365 -> ر.س.‏ 2,500.25
B20: المصاريف | C20: ضريبة/رسوم المركبة | D20: ر.س.‏ 0.55 | E20: =اليومية[[#This Row],[السنوي]]/12 -> ر.س.‏ 16.73 | F20: =اليومية[[#This Row],[يومي]]*365 -> ر.س.‏ 200.75
B21: المصاريف | C21: مدفوعات المركبة | D21: ر.س.‏ 10.96 | E21: =اليومية[[#This Row],[السنوي]]/12 -> ر.س.‏ 333.37 | F21: =اليومية[[#This Row],[يومي]]*365 -> ر.س.‏ 4,000.40
B22: المصاريف | C22: الرهن/الإيجار | D22: ر.س.‏ 41.10 | E22: =اليومية[[#This Row],[السنوي]]/12 -> ر.س.‏ 1,250.13 | F22: =اليومية[[#This Row],[يومي]]*365 -> ر.س.‏ 15,001.50
B23: المصاريف | C23: التأمين | D23: ر.س.‏ 0.68 | E23: =اليومية[[#This Row],[السنوي]]/12 -> ر.س.‏ 20.68 | F23: =اليومية[[#This Row],[يومي]]*365 -> ر.س.‏ 248.20
B24: المصاريف | C24: الكهرباء | D24: ر.س.‏ 3.29 | E24: =اليومية[[#This Row],[السنوي]]/12 -> ر.س.‏ 100.07 | F24: =اليومية[[#This Row],[يومي]]*365 -> ر.س.‏ 1,200.85
B25: المصاريف | C25: الوقود | D25: ر.س.‏ 1.64 | E25: =اليومية[[#This Row],[السنوي]]/12 -> ر.س.‏ 49.88 | F25: =اليومية[[#This Row],[يومي]]*365 -> ر.س.‏ 598.60
B26: المصاريف | C26: المياه | D26: ر.س.‏ 1.64 | E26: =اليومية[[#This Row],[السنوي]]/12 -> ر.س.‏ 49.88 | F26: =اليومية[[#This Row],[يومي]]*365 -> ر.س.‏ 598.60
B27: المصاريف | C27: الصرف الصحي | D27: ر.س.‏ 0.82 | E27: =اليومية[[#This Row],[السنوي]]/12 -> ر.س.‏ 24.94 | F27: =اليومية[[#This Row],[يومي]]*365 -> ر.س.‏ 299.30
B28: المصاريف | C28: النفايات | D28: ر.س.‏ 0.41 | E28: =اليومية[[#This Row],[السنوي]]/12 -> ر.س.‏ 12.47 | F28: =اليومية[[#This Row],[يومي]]*365 -> ر.س.‏ 149.65
B29: المصاريف | C29: الهاتف | D29: ر.س.‏ 1.64 | E29: =اليومية[[#This Row],[السنوي]]/12 -> ر.س.‏ 49.88 | F29: =اليومية[[#This Row],[يومي]]*365 -> ر.س.‏ 598.60
B30: المصاريف | C30: الإنترنت | D30: ر.س.‏ 1.64 | E30: =اليومية[[#This Row],[السنوي]]/12 -> ر.س.‏ 49.88 | F30: =اليومية[[#This Row],[يومي]]*365 -> ر.س.‏ 598.60
B31: المصاريف | C31: متميزة لذوي الاحتياجات الخاصة | D31: ر.س.‏ 4.11 | E31: =اليومية[[#This Row],[السنوي]]/12 -> ر.س.‏ 125.01 | F31: =اليومية[[#This Row],[يومي]]*365 -> ر.س.‏ 1,500.15
B32: المصاريف | C32: الطعام | D32: ر.س.‏ 13.70 | E32: =اليومية[[#This Row],[السنوي]]/12 -> ر.س.‏ 416.71 | F32: =اليومية[[#This Row],[يومي]]*365 -> ر.س.‏ 5,000.50
B33: المصاريف | C33: الملابس | D33: ر.س.‏ 3.29 | E33: =اليومية[[#This Row],[السنوي]]/12 -> ر.س.‏ 100.07 | F33: =اليومية[[#This Row],[يومي]]*365 -> ر.س.‏ 1,200.85
B34: المصاريف | C34: الطب/طب الأسنان/الوصفات الطبية | D34: ر.س.‏ 1.64 | E34: =اليومية[[#This Row],[السنوي]]/12 -> ر.س.‏ 49.88 | F34: =اليومية[[#This Row],[يومي]]*365 -> ر.س.‏ 598.60
B35: المصاريف | C35: الحافلات | D35: ر.س.‏ 1.00 | E35: =اليومية[[#This Row],[السنوي]]/12 -> ر.س.‏ 30.42 | F35: =اليومية[[#This Row],[يومي]]*365 -> ر.س.‏ 365.00
B36: المصاريف | C36: أخرى 2 | D36: ر.س.‏ 0.00 | E36: =اليومية[[#This Row],[السنوي]]/12 -> ر.س.‏ 0.00 | F36: =اليومية[[#This Row],[يومي]]*365 -> ر.س.‏ 0.00
B37: المصاريف | C37: أخرى 3 | D37: ر.س.‏ 0.00 | E37: =اليومية[[#This Row],[السنوي]]/12 -> ر.س.‏ 0.00 | F37: =اليومية[[#This Row],[يومي]]*365 -> ر.س.‏ 0.00
B38: المصاريف | C38: أخرى 4 | D38: ر.س.‏ 0.00 | E38: =اليومية[[#This Row],[السنوي]]/12 -> ر.س.‏ 0.00 | F38: =اليومية[[#This Row],[يومي]]*365 -> ر.س.‏ 0.00
B39: التقديرية | C39: العشاء | D39: ر.س.‏ 3.29 | E39: =اليومية[[#This Row],[السنوي]]/12 -> ر.س.‏ 100.07 | F39: =اليومية[[#This Row],[يومي]]*365 -> ر.س.‏ 1,200.85
B40: التقديرية | C40: الهدايا | D40: ر.س.‏ 1.64 | E40: =اليومية[[#This Row],[السنوي]]/12 -> ر.س.‏ 49.88 | F40: =اليومية[[#This Row],[يومي]]*365 -> ر.س.‏ 598.60
B41: التقديرية | C41: السفر | D41: ر.س.‏ 6.16 | E41: =اليومية[[#This Row],[السنوي]]/12 -> ر.س.‏ 187.37 | F41: =اليومية[[#This Row],[يومي]]*365 -> ر.س.‏ 2,248.40
B42: التقديرية | C42: الترفيه | D42: ر.س.‏ 3.29 | E42: =اليومية[[#This Row],[السنوي]]/12 -> ر.س.‏ 100.07 | F42: =اليومية[[#This Row],[يومي]]*365 -> ر.س.‏ 1,200.85
B43: التقديرية | C43: الرعاية الشخصية | D43: ر.س.‏ 0.82 | E43: =اليومية[[#This Row],[السنوي]]/12 -> ر.س.‏ 24.94 | F43: =اليومية[[#This Row],[يومي]]*365 -> ر.س.‏ 299.30
B44: التقديرية | C44: التسوق | D44: ر.س.‏ 5.48 | E44: =اليومية[[#This Row],[السنوي]]/12 -> ر.س.‏ 166.68 | F44: =اليومية[[#This Row],[يومي]]*365 -> ر.س.‏ 2,000.20
B45: التقديرية | C45: الأعمال الخيرية | D45: ر.س.‏ 1.64 | E45: =اليومية[[#This Row],[السنوي]]/12 -> ر.س.‏ 49.88 | F45: =اليومية[[#This Row],[يومي]]*365 -> ر.س.‏ 598.60
B46: التقديرية | C46: النادي/العضوية | D46: ر.س.‏ 0.82 | E46: =اليومية[[#This Row],[السنوي]]/12 -> ر.س.‏ 24.94 | F46: =اليومية[[#This Row],[يومي]]*365 -> ر.س.‏ 299.30
B47: التقديرية | C47: التحسينات المنزلية | D47: ر.س.‏ 13.15 | E47: =اليومية[[#This Row],[السنوي]]/12 -> ر.س.‏ 399.98 | F47: =اليومية[[#This Row],[يومي]]*365 -> ر.س.‏ 4,799.75
B48: التقديرية | C48: أخرى 1 | D48: ر.س.‏ 0.00 | E48: =اليومية[[#This Row],[السنوي]]/12 -> ر.س.‏ 0.00 | F48: =اليومية[[#This Row],[يومي]]*365 -> ر.س.‏ 0.00
B49: التقديرية | C49: أخرى 2 | D49: ر.س.‏ 0.00 | E49: =اليومية[[#This Row],[السنوي]]/12 -> ر.س.‏ 0.00 | F49: =اليومية[[#This Row],[يومي]]*365 -> ر.س.‏ 0.00
B50: المدخرات | C50: الاحتياطيات النقدية | D50: ر.س.‏ 13.70 | E50: =اليومية[[#This Row],[السنوي]]/12 -> ر.س.‏ 416.71 | F50: =اليومية[[#This Row],[يومي]]*365 -> ر.س.‏ 5,000.50
B51: المدخرات | C51: 401 (ألف)/غير ذلك | D51: ر.س.‏ 32.88 | E51: =اليومية[[#This Row],[السنوي]]/12 -> ر.س.‏ 1,000.10 | F51: =اليومية[[#This Row],[يومي]]*365 -> ر.س.‏ 12,001.20
B52: المدخرات | C52: حساب الادخار | D52: ر.س.‏ 16.44 | E52: =اليومية[[#This Row],[السنوي]]/12 -> ر.س.‏ 500.05 | F52: =اليومية[[#This Row],[يومي]]*365 -> ر.س.‏ 6,000.60
B53: المدخرات | C53: أخرى 1 | D53: ر.س.‏ 0.00 | E53: =اليومية[[#This Row],[السنوي]]/12 -> ر.س.‏ 0.00 | F53: =اليومية[[#This Row],[يومي]]*365 -> ر.س.‏ 0.00
B54: المدخرات | C54: أخرى 2 | D54: ر.س.‏ 0.00 | E54: =اليومية[[#This Row],[السنوي]]/12 -> ر.س.‏ 0.00 | F54: =اليومية[[#This Row],[يومي]]*365 -> ر.س.‏ 0.00
B55: الإجمالي | D55: =SUMIF(اليومية[النوع],"الدخل",اليومية[يومي])-SUMIF(اليومية[النوع],"<>الدخل",اليومية[يومي]) -> ر.س.‏ 107.10 | E55: =SUMIF(اليومية[النوع],"الدخل",اليومية[الشهري])-SUMIF(اليومية[النوع],"<>الدخل",اليومية[الشهري]) -> ر.س.‏ 3,257.63 | F55: =SUMIF(اليومية[النوع],"الدخل",اليومية[السنوي])-SUMIF(اليومية[النوع],"<>الدخل",اليومية[السنوي]) -> ر.س.‏ 39,091.50

Sheet التدفق النقدي الشهري
B1: التدفق النقدي الشخصي
C2: إجمالي التدفق النقدي الشهري: | D2: =التدفق_النقدي_الشهري_حتى_تاريخه -> ر.س.‏ 18,380.00 | F2: ملاحظة: بالنسبة للعناصر اليومية، قم بتقدير القيمة/ المبلغ الشهري وقم بوضع القيمة في عمود الشهر المناسب.
B4: النوع | C4: الوصف | D4: يناير | E4: فبراير | F4: مارس | G4: أبريل | H4: مايو | I4: يونيو | J4: يوليو | K4: أغسطس | L4: سبتمبر | M4: أكتوبر | N4: نوفمبر | O4: ديسمبر | P4: الإجمالي
B5: الدخل | C5: المرتب | D5: ر.س.‏ 7,500.00 | E5: ر.س.‏ 7,500.00 | F5: ر.س.‏ 7,500.00 | G5: ر.س.‏ 7,500.00 | H5: ر.س.‏ 7,500.00 | I5: ر.س.‏ 7,500.00 | P5: =SUM(شهرية[[#This Row],[يناير]:[ديسمبر]]) -> ر.س.‏ 45,000.00
B6: الدخل | C6: العمولات/المكافآت | D6: ر.س.‏ 400.00 | E6: ر.س.‏ 400.00 | F6: ر.س.‏ 500.00 | G6: ر.س.‏ 200.00 | H6: ر.س.‏ 0.00 | I6: ر.س.‏ 600.00 | P6: =SUM(شهرية[[#This Row],[يناير]:[ديسمبر]]) -> ر.س.‏ 2,100.00
B7: الدخل | C7: أخرى 1 | D7: ر.س.‏ 2,500.00 | E7: ر.س.‏ 2,500.00 | F7: ر.س.‏ 2,500.00 | G7: ر.س.‏ 2,500.00 | H7: ر.س.‏ 2,500.00 | I7: ر.س.‏ 2,500.00 | P7: =SUM(شهرية[[#This Row],[يناير]:[ديسمبر]]) -> ر.س.‏ 15,000.00
B8: الدخل | C8: أخرى 2 | D8: ر.س.‏ 0.00 | E8: ر.س.‏ 0.00 | F8: ر.س.‏ 0.00 | G8: ر.س.‏ 0.00 | H8: ر.س.‏ 0.00 | I8: ر.س.‏ 0.00 | P8: =SUM(شهرية[[#This Row],[يناير]:[ديسمبر]]) -> ر.س.‏ 0.00
B9: الدخل | C9: أخرى 3 | D9: ر.س.‏ 0.00 | E9: ر.س.‏ 0.00 | F9: ر.س.‏ 0.00 | G9: ر.س.‏ 0.00 | H9: ر.س.‏ 0.00 | I9: ر.س.‏ 0.00 | P9: =SUM(شهرية[[#This Row],[يناير]:[ديسمبر]]) -> ر.س.‏ 0.00
B10: الدخل | C10: أخرى 4 | D10: ر.س.‏ 0.00 | E10: ر.س.‏ 0.00 | F10: ر.س.‏ 0.00 | G10: ر.س.‏ 0.00 | H10: ر.س.‏ 0.00 | I10: ر.س.‏ 0.00 | P10: =SUM(شهرية[[#This Row],[يناير]:[ديسمبر]]) -> ر.س.‏ 0.00
B11: المصاريف | C11: الفيدرالي/الضمان الاجتماعي/الرعاية الطبية | D11: ر.س.‏ 1,250.00 | E11: ر.س.‏ 1,250.00 | F11: ر.س.‏ 1,250.00 | G11: ر.س.‏ 1,250.00 | H11: ر.س.‏ 1,250.00 | I11: ر.س.‏ 1,250.00 | P11: =SUM(شهرية[[#This Row],[يناير]:[ديسمبر]]) -> ر.س.‏ 7,500.00
B12: المصاريف | C12: ضريبة الدخل الحكومية | D12: ر.س.‏ 208.33 | E12: ر.س.‏ 208.33 | F12: ر.س.‏ 208.33 | G12: ر.س.‏ 208.33 | H12: ر.س.‏ 208.33 | I12: ر.س.‏ 208.33 | P12: =SUM(شهرية[[#This Row],[يناير]:[ديسمبر]]) -> ر.س.‏ 1,250.00
B13: المصاريف | C13: ضريبة/رسوم المركبة | D13: ر.س.‏ 16.67 | E13: ر.س.‏ 16.67 | F13: ر.س.‏ 16.67 | G13: ر.س.‏ 16.67 | H13: ر.س.‏ 16.67 | I13: ر.س.‏ 16.67 | P13: =SUM(شهرية[[#This Row],[يناير]:[ديسمبر]]) -> ر.س.‏ 100.00
B14: المصاريف | C14: مدفوعات المركبة | D14: ر.س.‏ 333.33 | E14: ر.س.‏ 333.33 | F14: ر.س.‏ 333.33 | G14: ر.س.‏ 333.33 | H14: ر.س.‏ 333.33 | I14: ر.س.‏ 333.33 | P14: =SUM(شهرية[[#This Row],[يناير]:[ديسمبر]]) -> ر.س.‏ 2,000.00
B15: المصاريف | C15: الرهن/الإيجار | D15: ر.س.‏ 1,250.00 | E15: ر.س.‏ 1,250.00 | F15: ر.س.‏ 1,250.00 | G15: ر.س.‏ 1,250.00 | H15: ر.س.‏ 1,250.00 | I15: ر.س.‏ 1,250.00 | P15: =SUM(شهرية[[#This Row],[يناير]:[ديسمبر]]) -> ر.س.‏ 7,500.00
B16: المصاريف | C16: التأمين | D16: ر.س.‏ 25.00 | E16: ر.س.‏ 25.00 | F16: ر.س.‏ 25.00 | G16: ر.س.‏ 25.00 | H16: ر.س.‏ 25.00 | I16: ر.س.‏ 25.00 | P16: =SUM(شهرية[[#This Row],[يناير]:[ديسمبر]]) -> ر.س.‏ 150.00
B17: المصاريف | C17: الكهرباء | D17: ر.س.‏ 100.00 | E17: ر.س.‏ 100.00 | F17: ر.س.‏ 100.00 | G17: ر.س.‏ 100.00 | H17: ر.س.‏ 100.00 | I17: ر.س.‏ 100.00 | P17: =SUM(شهرية[[#This Row],[يناير]:[ديسمبر]]) -> ر.س.‏ 600.00
B18: المصاريف | C18: الوقود | D18: ر.س.‏ 50.00 | E18: ر.س.‏ 50.00 | F18: ر.س.‏ 50.00 | G18: ر.س.‏ 50.00 | H18: ر.س.‏ 50.00 | I18: ر.س.‏ 50.00 | P18: =SUM(شهرية[[#This Row],[يناير]:[ديسمبر]]) -> ر.س.‏ 300.00
B19: المصاريف | C19: المياه | D19: ر.س.‏ 50.00 | E19: ر.س.‏ 50.00 | F19: ر.س.‏ 50.00 | G19: ر.س.‏ 50.00 | H19: ر.س.‏ 50.00 | I19: ر.س.‏ 50.00 | P19: =SUM(شهرية[[#This Row],[يناير]:[ديسمبر]]) -> ر.س.‏ 300.00
B20: المصاريف | C20: الصرف الصحي | D20: ر.س.‏ 25.00 | E20: ر.س.‏ 25.00 | F20: ر.س.‏ 25.00 | G20: ر.س.‏ 25.00 | H20: ر.س.‏ 25.00 | I20: ر.س.‏ 25.00 | P20: =SUM(شهرية[[#This Row],[يناير]:[ديسمبر]]) -> ر.س.‏ 150.00
B21: المصاريف | C21: النفايات | D21: ر.س.‏ 12.50 | E21: ر.س.‏ 12.50 | F21: ر.س.‏ 12.50 | G21: ر.س.‏ 12.50 | H21: ر.س.‏ 12.50 | I21: ر.س.‏ 12.50 | P21: =SUM(شهرية[[#This Row],[يناير]:[ديسمبر]]) -> ر.س.‏ 75.00
B22: المصاريف | C22: الهاتف | D22: ر.س.‏ 50.00 | E22: ر.س.‏ 50.00 | F22: ر.س.‏ 50.00 | G22: ر.س.‏ 50.00 | H22: ر.س.‏ 50.00 | I22: ر.س.‏ 50.00 | P22: =SUM(شهرية[[#This Row],[يناير]:[ديسمبر]]) -> ر.س.‏ 300.00
B23: المصاريف | C23: الإنترنت | D23: ر.س.‏ 50.00 | E23: ر.س.‏ 50.00 | F23: ر.س.‏ 50.00 | G23: ر.س.‏ 50.00 | H23: ر.س.‏ 50.00 | I23: ر.س.‏ 50.00 | P23: =SUM(شهرية[[#This Row],[يناير]:[ديسمبر]]) -> ر.س.‏ 300.00
B24: المصاريف | C24: متميزة لذوي الاحتياجات الخاصة | D24: ر.س.‏ 125.00 | E24: ر.س.‏ 125.00 | F24: ر.س.‏ 125.00 | G24: ر.س.‏ 125.00 | H24: ر.س.‏ 125.00 | I24: ر.س.‏ 125.00 | P24: =SUM(شهرية[[#This Row],[يناير]:[ديسمبر]]) -> ر.س.‏ 750.00
B25: المصاريف | C25: الطعام | D25: ر.س.‏ 400.00 | E25: ر.س.‏ 500.00 | F25: ر.س.‏ 450.00 | G25: ر.س.‏ 400.00 | H25: ر.س.‏ 450.00 | I25: ر.س.‏ 425.00 | P25: =SUM(شهرية[[#This Row],[يناير]:[ديسمبر]]) -> ر.س.‏ 2,625.00
B26: المصاريف | C26: الملابس | D26: ر.س.‏ 50.00 | E26: ر.س.‏ 75.00 | F26: ر.س.‏ 100.00 | G26: ر.س.‏ 75.00 | H26: ر.س.‏ 125.00 | I26: ر.س.‏ 75.00 | P26: =SUM(شهرية[[#This Row],[يناير]:[ديسمبر]]) -> ر.س.‏ 500.00
B27: المصاريف | C27: الطب/طب الأسنان/الوصفات الطبية | D27: ر.س.‏ 50.00 | E27: ر.س.‏ 10.00 | F27: ر.س.‏ 25.00 | G27: ر.س.‏ 25.00 | H27: ر.س.‏ 20.00 | I27: ر.س.‏ 70.00 | P27: =SUM(شهرية[[#This Row],[يناير]:[ديسمبر]]) -> ر.س.‏ 200.00
B28: المصاريف | C28: الحافلات | D28: ر.س.‏ 30.00 | E28: ر.س.‏ 30.00 | F28: ر.س.‏ 30.00 | G28: ر.س.‏ 20.00 | H28: ر.س.‏ 30.00 | I28: ر.س.‏ 30.00 | P28: =SUM(شهرية[[#This Row],[يناير]:[ديسمبر]]) -> ر.س.‏ 170.00
B29: المصاريف | C29: أخرى 2 | D29: ر.س.‏ 0.00 | E29: ر.س.‏ 0.00 | F29: ر.س.‏ 0.00 | G29: ر.س.‏ 0.00 | H29: ر.س.‏ 0.00 | I29: ر.س.‏ 0.00 | P29: =SUM(شهرية[[#This Row],[يناير]:[ديسمبر]]) -> ر.س.‏ 0.00
B30: المصاريف | C30: أخرى 3 | D30: ر.س.‏ 0.00 | E30: ر.س.‏ 0.00 | F30: ر.س.‏ 0.00 | G30: ر.س.‏ 0.00 | H30: ر.س.‏ 0.00 | I30: ر.س.‏ 0.00 | P30: =SUM(شهرية[[#This Row],[يناير]:[ديسمبر]]) -> ر.س.‏ 0.00
B31: المصاريف | C31: أخرى 4 | D31: ر.س.‏ 0.00 | E31: ر.س.‏ 0.00 | F31: ر.س.‏ 0.00 | G31: ر.س.‏ 0.00 | H31: ر.س.‏ 0.00 | I31: ر.س.‏ 0.00 | P31: =SUM(شهرية[[#This Row],[يناير]:[ديسمبر]]) -> ر.س.‏ 0.00
B32: التقديرية | C32: العشاء | D32: ر.س.‏ 50.00 | E32: ر.س.‏ 150.00 | F32: ر.س.‏ 100.00 | G32: ر.س.‏ 50.00 | H32: ر.س.‏ 150.00 | I32: ر.س.‏ 100.00 | P32: =SUM(شهرية[[#This Row],[يناير]:[ديسمبر]]) -> ر.س.‏ 600.00
B33: التقديرية | C33: الهدايا | D33: ر.س.‏ 25.00 | E33: ر.س.‏ 75.00 | F33: ر.س.‏ 50.00 | G33: ر.س.‏ 25.00 | H33: ر.س.‏ 75.00 | I33: ر.س.‏ 50.00 | P33: =SUM(شهرية[[#This Row],[يناير]:[ديسمبر]]) -> ر.س.‏ 300.00
B34: التقديرية | C34: السفر | D34: ر.س.‏ 0.00 | E34: ر.س.‏ 0.00 | F34: ر.س.‏ 1,000.00 | G34: ر.س.‏ 0.00 | H34: ر.س.‏ 0.00 | I34: ر.س.‏ 1,000.00 | P34: =SUM(شهرية[[#This Row],[يناير]:[ديسمبر]]) -> ر.س.‏ 2,000.00
B35: التقديرية | C35: الترفيه | D35: ر.س.‏ 50.00 | E35: ر.س.‏ 150.00 | F35: ر.س.‏ 100.00 | G35: ر.س.‏ 50.00 | H35: ر.س.‏ 150.00 | I35: ر.س.‏ 100.00 | P35: =SUM(شهرية[[#This Row],[يناير]:[ديسمبر]]) -> ر.س.‏ 600.00
B36: التقديرية | C36: الرعاية الشخصية | D36: ر.س.‏ 15.00 | E36: ر.س.‏ 25.00 | F36: ر.س.‏ 35.00 | G36: ر.س.‏ 15.00 | H36: ر.س.‏ 25.00 | I36: ر.س.‏ 35.00 | P36: =SUM(شهرية[[#This Row],[يناير]:[ديسمبر]]) -> ر.س.‏ 150.00
B37: التقديرية | C37: التسوق | D37: ر.س.‏ 100.00 | E37: ر.س.‏ 200.00 | F37: ر.س.‏ 150.00 | G37: ر.س.‏ 175.00 | H37: ر.س.‏ 150.00 | I37: ر.س.‏ 175.00 | P37: =SUM(شهرية[[#This Row],[يناير]:[ديسمبر]]) -> ر.س.‏ 950.00
B38: التقديرية | C38: الأعمال الخيرية | D38: ر.س.‏ 50.00 | E38: ر.س.‏ 50.00 | F38: ر.س.‏ 50.00 | G38: ر.س.‏ 50.00 | H38: ر.س.‏ 50.00 | I38: ر.س.‏ 50.00 | P38: =SUM(شهرية[[#This Row],[يناير]:[ديسمبر]]) -> ر.س.‏ 300.00
B39: التقديرية | C39: النادي/العضوية | D39: ر.س.‏ 25.00 | E39: ر.س.‏ 25.00 | F39: ر.س.‏ 25.00 | G39: ر.س.‏ 25.00 | H39: ر.س.‏ 25.00 | I39: ر.س.‏ 25.00 | P39: =SUM(شهرية[[#This Row],[يناير]:[ديسمبر]]) -> ر.س.‏ 150.00
B40: التقديرية | C40: التحسينات المنزلية | D40: ر.س.‏ 400.00 | E40: ر.س.‏ 400.00 | F40: ر.س.‏ 400.00 | G40: ر.س.‏ 400.00 | H40: ر.س.‏ 400.00 | I40: ر.س.‏ 400.00 | P40: =SUM(شهرية[[#This Row],[يناير]:[ديسمبر]]) -> ر.س.‏ 2,400.00
B41: التقديرية | C41: أخرى 1 | D41: ر.س.‏ 0.00 | E41: ر.س.‏ 0.00 | F41: ر.س.‏ 0.00 | G41: ر.س.‏ 0.00 | H41: ر.س.‏ 0.00 | I41: ر.س.‏ 0.00 | P41: =SUM(شهرية[[#This Row],[يناير]:[ديسمبر]]) -> ر.س.‏ 0.00
B42: التقديرية | C42: أخرى 2 | D42: ر.س.‏ 0.00 | E42: ر.س.‏ 0.00 | F42: ر.س.‏ 0.00 | G42: ر.س.‏ 0.00 | H42: ر.س.‏ 0.00 | I42: ر.س.‏ 0.00 | P42: =SUM(شهرية[[#This Row],[يناير]:[ديسمبر]]) -> ر.س.‏ 0.00
B43: المدخرات | C43: الاحتياطيات النقدية | D43: ر.س.‏ 416.67 | E43: ر.س.‏ 416.67 | F43: ر.س.‏ 416.67 | G43: ر.س.‏ 416.67 | H43: ر.س.‏ 416.67 | I43: ر.س.‏ 416.67 | P43: =SUM(شهرية[[#This Row],[يناير]:[ديسمبر]]) -> ر.س.‏ 2,500.00
B44: المدخرات | C44: 401 (ألف)/غير ذلك | D44: ر.س.‏ 1,000.00 | E44: ر.س.‏ 1,000.00 | F44: ر.س.‏ 1,000.00 | G44: ر.س.‏ 1,000.00 | H44: ر.س.‏ 1,000.00 | I44: ر.س.‏ 1,000.00 | P44: =SUM(شهرية[[#This Row],[يناير]:[ديسمبر]]) -> ر.س.‏ 6,000.00
B45: المدخرات | C45: حساب الادخار | D45: ر.س.‏ 500.00 | E45: ر.س.‏ 500.00 | F45: ر.س.‏ 500.00 | G45: ر.س.‏ 500.00 | H45: ر.س.‏ 500.00 | I45: ر.س.‏ 500.00 | P45: =SUM(شهرية[[#This Row],[يناير]:[ديسمبر]]) -> ر.س.‏ 3,000.00
B46: المدخرات | C46: أخرى 1 | D46: ر.س.‏ 0.00 | E46: ر.س.‏ 0.00 | F46: ر.س.‏ 0.00 | G46: ر.س.‏ 0.00 | H46: ر.س.‏ 0.00 | I46: ر.س.‏ 0.00 | P46: =SUM(شهرية[[#This Row],[يناير]:[ديسمبر]]) -> ر.س.‏ 0.00
B47: المدخرات | C47: أخرى 2 | D47: ر.س.‏ 0.00 | E47: ر.س.‏ 0.00 | F47: ر.س.‏ 0.00 | G47: ر.س.‏ 0.00 | H47: ر.س.‏ 0.00 | I47: ر.س.‏ 0.00 | P47: =SUM(شهرية[[#This Row],[يناير]:[ديسمبر]]) -> ر.س.‏ 0.00
B48: الإجمالي | D48: =SUMIF(شهرية[النوع],"الدخل",شهرية[يناير])-SUMIF(شهرية[النوع],"<>الدخل",شهرية[يناير]) -> ر.س.‏ 3,692.50 | E48: =SUMIF(شهرية[النوع],"الدخل",شهرية[فبراير])-SUMIF(شهرية[النوع],"<>الدخل",شهرية[فبراير]) -> ر.س.‏ 3,247.50 | F48: =SUMIF(شهرية[النوع],"الدخل",شهرية[مارس])-SUMIF(شهرية[النوع],"<>الدخل",شهرية[مارس]) -> ر.س.‏ 2,522.50 | G48: =SUMIF(شهرية[النوع],"الدخل",شهرية[أبريل])-SUMIF(شهرية[النوع],"<>الدخل",شهرية[أبريل]) -> ر.س.‏ 3,427.50 | H48: =SUMIF(شهرية[النوع],"الدخل",شهرية[مايو])-SUMIF(شهرية[النوع],"<>الدخل",شهرية[مايو]) -> ر.س.‏ 2,887.50 | I48: =SUMIF(شهرية[النوع],"الدخل",شهرية[يونيو])-SUMIF(شهرية[النوع],"<>الدخل",شهرية[يونيو]) -> ر.س.‏ 2,602.50 | J48: =SUMIF(شهرية[النوع],"الدخل",شهرية[يوليو])-SUMIF(شهرية[النوع],"<>الدخل",شهرية[يوليو]) -> ر.س.‏ 0.00 | K48: =SUMIF(شهرية[النوع],"الدخل",شهرية[أغسطس])-SUMIF(شهرية[النوع],"<>الدخل",شهرية[أغسطس]) -> ر.س.‏ 0.00 | L48: =SUMIF(شهرية[النوع],"الدخل",شهرية[سبتمبر])-SUMIF(شهرية[النوع],"<>الدخل",شهرية[سبتمبر]) -> ر.س.‏ 0.00 | M48: =SUMIF(شهرية[النوع],"الدخل",شهرية[أكتوبر])-SUMIF(شهرية[النوع],"<>الدخل",شهرية[أكتوبر]) -> ر.س.‏ 0.00 | N48: =SUMIF(شهرية[النوع],"الدخل",شهرية[نوفمبر])-SUMIF(شهرية[النوع],"<>الدخل",شهرية[نوفمبر]) -> ر.س.‏ 0.00 | O48: =SUMIF(شهرية[النوع],"الدخل",شهرية[ديسمبر])-SUMIF(شهرية[النوع],"<>الدخل",شهرية[ديسمبر]) -> ر.س.‏ 0.00 | P48: =SUMIF(شهرية[النوع],"الدخل",شهرية[الإجمالي])-SUMIF(شهرية[النوع],"<>الدخل",شهرية[الإجمالي]) -> ر.س.‏ 18,380.00

Sheet التدفق النقدي السنوي
B1: التدفق النقدي الشخصي
C2: التدفق النقدي الإجمالي حتى تاريخه: | D2: =التدفق_النقدي_السنوي_حتى_تاريخه -> ر.س.‏ 42,250.00 | G2: هذا تقدير سنوي. استخدم ورقة العمل هذه إذا كنت ترغب في عرض المبالغ السنوية بالقيم الشهرية المقدرة. استخدم أوراق عمل الدخل والمصاريف والاختيارية والتوفير لإدخال العناصر.
B4: ملخص الدخل | F4: ملخص المصاريف | J4: الملخص التقديري | N4: ملخص المدخرات
B5: الإجمالي السنوي: | C5: =الدخل!C11 -> ر.س.‏ 125,000.00 | F5: الإجمالي السنوي: | G5: =المصاريف[[#Totals],[السنوي ]] -> ر.س.‏ 46,500.00 | J5: الإجمالي السنوي: | K5: =التقديرية[[#Totals],[السنوي ]] -> ر.س.‏ 13,250.00 | N5: الإجمالي السنوي: | O5: =المدخرات[[#Totals],[السنوي ]] -> ر.س.‏ 23,000.00
B8: الإجمالي الشهري: | C8: =الدخل!D11 -> ر.س.‏ 10,416.67 | F8: الإجمالي الشهري: | G8: =المصاريف[[#Totals],[الشهري ]] -> ر.س.‏ 3,875.00 | J8: الإجمالي الشهري: | K8: =التقديرية[[#Totals],[الشهري ]] -> ر.س.‏ 1,104.17 | N8: الإجمالي الشهري: | O8: =المدخرات!D10 -> ر.س.‏ 1,916.67
R10: تسميات الصفوف | S10: ‏‏مجموع السنوي | U10: تسميات الصفوف | V10: ‏‏مجموع السنوي | X10: تسميات الصفوف | Y10: ‏‏مجموع السنوي | AA10: تسميات الصفوف | AB10: ‏‏مجموع السنوي
R11: أخرى 1 | S11: ر.س.‏ 30,000 | U11: أخرى 1 | V11: ر.س.‏ 0 | X11: أخرى 1 | Y11: ر.س.‏ 0 | AA11: 401 (ألف)/غير ذلك | AB11: ر.س.‏ 12,000
R12: أخرى 2 | S12: ر.س.‏ 0 | U12: أخرى 2 | V12: ر.س.‏ 0 | X12: أخرى 2 | Y12: ر.س.‏ 0 | AA12: أخرى 1 | AB12: ر.س.‏ 0
R13: أخرى 3 | S13: ر.س.‏ 0 | U13: الإنترنت | V13: ر.س.‏ 600 | X13: الأعمال الخيرية | Y13: ر.س.‏ 600 | AA13: أخرى 2 | AB13: ر.س.‏ 0
R14: أخرى 4 | S14: ر.س.‏ 0 | U14: التأمين | V14: ر.س.‏ 250 | X14: التحسينات المنزلية | Y14: ر.س.‏ 4,800 | AA14: الاحتياطيات النقدية | AB14: ر.س.‏ 5,000
R15: العمولات/المكافآت | S15: ر.س.‏ 5,000 | U15: الرهن/الإيجار | V15: ر.س.‏ 15,000 | X15: الترفيه | Y15: ر.س.‏ 1,200 | AA15: المدخرات/الاستثمارات | AB15: ر.س.‏ 6,000
R16: المرتب | S16: ر.س.‏ 90,000 | U16: الطب/طب الأسنان/الوصفات الطبية | V16: ر.س.‏ 600 | X16: التسوق | Y16: ر.س.‏ 2,000 | AA16: الإجمالي الكلي | AB16: ر.س.‏ 23,000
R17: الإجمالي الكلي | S17: ر.س.‏ 125,000 | U17: الطعام | V17: ر.س.‏ 5,000 | X17: الرعاية الشخصية | Y17: ر.س.‏ 300
U18: الفيدرالي/الضمان الاجتماعي/الرعاية الطبية | V18: ر.س.‏ 12,500 | X18: السفر | Y18: ر.س.‏ 2,250
U19: الكهرباء | V19: ر.س.‏ 1,200 | X19: العشاء | Y19: ر.س.‏ 1,200
U20: الملابس | V20: ر.س.‏ 1,200 | X20: النادي/العضوية | Y20: ر.س.‏ 300
U21: المياه/الصرف الصحي | V21: ر.س.‏ 600 | X21: الهدايا | Y21: ر.س.‏ 600
U22: النفايات | V22: ر.س.‏ 150 | X22: الإجمالي الكلي | Y22: ر.س.‏ 13,250
U23: الهاتف | V23: ر.س.‏ 600
U24: الوقود | V24: ر.س.‏ 600
U25: ضريبة الدخل الحكومية | V25: ر.س.‏ 2,500
U26: ضريبة/رسوم المركبة | V26: ر.س.‏ 200
U27: متميزة لذوي الاحتياجات الخاصة | V27: ر.س.‏ 1,500
U28: مدفوعات المركبة | V28: ر.س.‏ 4,000
U29: الإجمالي الكلي | V29: ر.س.‏ 46,500

Sheet الدخل
B1: التدفق النقدي الشخصي
C2: التدفق النقدي الإجمالي حتى تاريخه: | D2: =التدفق_النقدي_السنوي_حتى_تاريخه -> ر.س.‏ 42,250.00 | F2: هذا تقدير سنوي. استخدم ورقة العمل هذه إذا كنت ترغب في عرض المبالغ السنوية بالقيم الشهرية المقدرة. إذا كنت ترغب في إضافة عناصر يومية إلى الجداول، فقم بتقدير القيمة/المبلغ السنوي وقم بوضع القيمة في العمود "السنوي".
B4: الدخل | C4: السنوي | D4: الشهري
B5: المرتب | C5: ر.س.‏ 90,000.00 | D5: =الدخل[[#This Row],[السنوي ]]/12 -> ر.س.‏ 7,500.00
B6: العمولات/المكافآت | C6: ر.س.‏ 5,000.00 | D6: =الدخل[[#This Row],[السنوي ]]/12 -> ر.س.‏ 416.67
B7: أخرى 1 | C7: ر.س.‏ 30,000.00 | D7: =الدخل[[#This Row],[السنوي ]]/12 -> ر.س.‏ 2,500.00
B8: أخرى 2 | C8: ر.س.‏ 0.00 | D8: =الدخل[[#This Row],[السنوي ]]/12 -> ر.س.‏ 0.00
B9: أخرى 3 | C9: ر.س.‏ 0.00 | D9: =الدخل[[#This Row],[السنوي ]]/12 -> ر.س.‏ 0.00
B10: أخرى 4 | C10: ر.س.‏ 0.00 | D10: =الدخل[[#This Row],[السنوي ]]/12 -> ر.س.‏ 0.00
B11: الإجمالي | C11: =SUBTOTAL(109,الدخل[[السنوي ]]) -> ر.س.‏ 125,000.00 | D11: =SUBTOTAL(109,الدخل[[الشهري ]]) -> ر.س.‏ 10,416.67

Sheet المصروفات
B1: التدفق النقدي الشخصي
C2: التدفق النقدي الإجمالي حتى تاريخه: | D2: =التدفق_النقدي_السنوي_حتى_تاريخه -> ر.س.‏ 42,250.00 | F2: هذا تقدير سنوي. استخدم ورقة العمل هذه إذا كنت ترغب في عرض المبالغ السنوية بالقيم الشهرية المقدرة إذا كنت ترغب في إضافة عناصر يومية إلى الجداول، فقم بتقدير القيمة/المبلغ السنوي وقم بوضع القيمة في العمود "السنوي".
B4: المصاريف | C4: السنوي | D4: الشهري
B5: الفيدرالي/الضمان الاجتماعي/الرعاية الطبية | C5: ر.س.‏ 12,500.00 | D5: =المصاريف[[#This Row],[السنوي ]]/12 -> ر.س.‏ 1,041.67
B6: ضريبة الدخل الحكومية | C6: ر.س.‏ 2,500.00 | D6: =المصاريف[[#This Row],[السنوي ]]/12 -> ر.س.‏ 208.33
B7: ضريبة/رسوم المركبة | C7: ر.س.‏ 200.00 | D7: =المصاريف[[#This Row],[السنوي ]]/12 -> ر.س.‏ 16.67
B8: مدفوعات المركبة | C8: ر.س.‏ 4,000.00 | D8: =المصاريف[[#This Row],[السنوي ]]/12 -> ر.س.‏ 333.33
B9: الرهن/الإيجار | C9: ر.س.‏ 15,000.00 | D9: =المصاريف[[#This Row],[السنوي ]]/12 -> ر.س.‏ 1,250.00
B10: التأمين | C10: ر.س.‏ 250.00 | D10: =المصاريف[[#This Row],[السنوي ]]/12 -> ر.س.‏ 20.83
B11: الكهرباء | C11: ر.س.‏ 1,200.00 | D11: =المصاريف[[#This Row],[السنوي ]]/12 -> ر.س.‏ 100.00
B12: الوقود | C12: ر.س.‏ 600.00 | D12: =المصاريف[[#This Row],[السنوي ]]/12 -> ر.س.‏ 50.00
B13: المياه/الصرف الصحي | C13: ر.س.‏ 600.00 | D13: =المصاريف[[#This Row],[السنوي ]]/12 -> ر.س.‏ 50.00
B14: النفايات | C14: ر.س.‏ 150.00 | D14: =المصاريف[[#This Row],[السنوي ]]/12 -> ر.س.‏ 12.50
B15: الهاتف | C15: ر.س.‏ 600.00 | D15: =المصاريف[[#This Row],[السنوي ]]/12 -> ر.س.‏ 50.00
B16: الإنترنت | C16: ر.س.‏ 600.00 | D16: =المصاريف[[#This Row],[السنوي ]]/12 -> ر.س.‏ 50.00
B17: متميزة لذوي الاحتياجات الخاصة | C17: ر.س.‏ 1,500.00 | D17: =المصاريف[[#This Row],[السنوي ]]/12 -> ر.س.‏ 125.00
B18: الطعام | C18: ر.س.‏ 5,000.00 | D18: =المصاريف[[#This Row],[السنوي ]]/12 -> ر.س.‏ 416.67
B19: الملابس | C19: ر.س.‏ 1,200.00 | D19: =المصاريف[[#This Row],[السنوي ]]/12 -> ر.س.‏ 100.00
B20: الطب/طب الأسنان/الوصفات الطبية | C20: ر.س.‏ 600.00 | D20: =المصاريف[[#This Row],[السنوي ]]/12 -> ر.س.‏ 50.00
B21: أخرى 1 | C21: ر.س.‏ 0.00 | D21: =المصاريف[[#This Row],[السنوي ]]/12 -> ر.س.‏ 0.00
B22: أخرى 2 | C22: ر.س.‏ 0.00 | D22: =المصاريف[[#This Row],[السنوي ]]/12 -> ر.س.‏ 0.00
B23: الإجمالي | C23: =SUBTOTAL(109,المصاريف[[السنوي ]]) -> ر.س.‏ 46,500.00 | D23: =SUBTOTAL(109,المصاريف[[الشهري ]]) -> ر.س.‏ 3,875.00

Sheet التقديرية
B1: التدفق النقدي الشخصي
C2: التدفق النقدي الإجمالي حتى تاريخه: | D2: =التدفق_النقدي_السنوي_حتى_تاريخه -> ر.س.‏ 42,250.00 | F2: هذا تقدير سنوي. استخدم ورقة العمل هذه إذا كنت ترغب في عرض المبالغ السنوية بالقيم الشهرية المقدرة إذا كنت ترغب في إضافة عناصر يومية إلى الجداول، فقم بتقدير القيمة/المبلغ السنوي وقم بوضع القيمة في العمود "السنوي".
B4: التقديرية | C4: السنوي | D4: الشهري
B5: العشاء | C5: ر.س.‏ 1,200.00 | D5: =التقديرية[[#This Row],[السنوي ]]/12 -> ر.س.‏ 100.00
B6: الهدايا | C6: ر.س.‏ 600.00 | D6: =التقديرية[[#This Row],[السنوي ]]/12 -> ر.س.‏ 50.00
B7: السفر | C7: ر.س.‏ 2,250.00 | D7: =التقديرية[[#This Row],[السنوي ]]/12 -> ر.س.‏ 187.50
B8: الترفيه | C8: ر.س.‏ 1,200.00 | D8: =التقديرية[[#This Row],[السنوي ]]/12 -> ر.س.‏ 100.00
B9: الرعاية الشخصية | C9: ر.س.‏ 300.00 | D9: =التقديرية[[#This Row],[السنوي ]]/12 -> ر.س.‏ 25.00
B10: التسوق | C10: ر.س.‏ 2,000.00 | D10: =التقديرية[[#This Row],[السنوي ]]/12 -> ر.س.‏ 166.67
B11: الأعمال الخيرية | C11: ر.س.‏ 600.00 | D11: =التقديرية[[#This Row],[السنوي ]]/12 -> ر.س.‏ 50.00
B12: النادي/العضوية | C12: ر.س.‏ 300.00 | D12: =التقديرية[[#This Row],[السنوي ]]/12 -> ر.س.‏ 25.00
B13: التحسينات المنزلية | C13: ر.س.‏ 4,800.00 | D13: =التقديرية[[#This Row],[السنوي ]]/12 -> ر.س.‏ 400.00
B14: أخرى 1 | C14: ر.س.‏ 0.00 | D14: =التقديرية[[#This Row],[السنوي ]]/12 -> ر.س.‏ 0.00
B15: أخرى 2 | C15: ر.س.‏ 0.00 | D15: =التقديرية[[#This Row],[السنوي ]]/12 -> ر.س.‏ 0.00
B16: الإجمالي | C16: =SUBTOTAL(109,التقديرية[[السنوي ]]) -> ر.س.‏ 13,250.00 | D16: =SUBTOTAL(109,التقديرية[[الشهري ]]) -> ر.س.‏ 1,104.17

Sheet المدخرات
B1: التدفق النقدي الشخصي
C2: التدفق النقدي الإجمالي حتى تاريخه: | D2: =التدفق_النقدي_السنوي_حتى_تاريخه -> ر.س.‏ 42,250.00 | F2: هذا تقدير سنوي. استخدم ورقة العمل هذه إذا كنت ترغب في عرض المبالغ السنوية بالقيم الشهرية المقدرة إذا كنت ترغب في إضافة عناصر يومية إلى الجداول، فقم بتقدير القيمة/المبلغ السنوي وقم بوضع القيمة في العمود "السنوي".
B4: المدخرات | C4: السنوي | D4: الشهري
B5: الاحتياطيات النقدية | C5: ر.س.‏ 5,000.00 | D5: =المدخرات[[#This Row],[السنوي ]]/12 -> ر.س.‏ 416.67
B6: 401 (ألف)/غير ذلك | C6: ر.س.‏ 12,000.00 | D6: =المدخرات[[#This Row],[السنوي ]]/12 -> ر.س.‏ 1,000.00
B7: المدخرات/الاستثمارات | C7: ر.س.‏ 6,000.00 | D7: =المدخرات[[#This Row],[السنوي ]]/12 -> ر.س.‏ 500.00
B8: أخرى 1 | C8: ر.س.‏ 0.00 | D8: =المدخرات[[#This Row],[السنوي ]]/12 -> ر.س.‏ 0.00
B9: أخرى 2 | C9: ر.س.‏ 0.00 | D9: =المدخرات[[#This Row],[السنوي ]]/12 -> ر.س.‏ 0.00
B10: الإجمالي | C10: =SUBTOTAL(109,المدخرات[[السنوي ]]) -> ر.س.‏ 23,000.00 | D10: =SUBTOTAL(109,المدخرات[[الشهري ]]) -> ر.س.‏ 1,916.67
